[Event "Turkey IS Bank Super League 2017"]
[Site "Darica-Kocaeli"]
[Date "2017.08.05"]
[Round "12"]
[White "Daulyte, Deimante"]
[Black "Isgandarova, Khayala"]
[Result "1-0"]
[ECO "C14"]
[WhiteElo "2404"]
[BlackElo "2257"]
[Annotator "RC"]
[PlyCount "77"]
[EventType "team-tourn"]
[EventCountry "TUR"]
[SourceTitle "playchess.com"]
[Source "ChessBase"]
[SourceQuality "1"]
[TimeControl "40/5400+30:1800+30"]

1. e4 {[%emt 0:00:30]} e6 {[%emt 0:02:00]} 2. d4 {[%emt 0:00:30]} d5 {[%emt 0:00:00]} 3. Nc3 {[%emt 0:00:00]} Nf6 {[%emt 0:00:00]} 4. Bg5 {[%emt 0:00:00]} Be7 {[%emt 0:00:30]} 5. e5 {[%emt 0:00:30]} Nfd7 {[%emt 0:00:00]} 6. Bxe7 {[%emt 0:00:00]} Qxe7 {[%emt 0:00:00]} 7. f4 {[%emt 0:00:00]} a6 {[%emt 0:00:00]} 8. Nf3 {[%emt 0:00:30]} c5 {[%emt 0:00:00]} 9. Qd2 {[%emt 0:00:30]} Nc6 {[%emt 0:00:00]} 10. dxc5 {[%emt 0:00:30]} Qxc5 {[%emt 0:03:00]} 11. Bd3 {[%emt 0:00:30]} b5 {[%emt 0:03:30]} 12. a3 {[%emt 0:00:30]} Nb6 {[%emt 0:08:30]} 13. b4 {[%emt 0:03:30]} Qe7 {[%emt 0:00:30]} 14. Qf2 {[%emt 0:00:00]} Rb8 {[%emt 0:01:30]} 15. O-O {[%emt 0:01:00]} Nc4 {[%emt 0:11:30]} 16. Ne2 {[%emt 0:02:30]} Bd7 {[%emt 0:06:30]} 17. Ned4 {[%emt 0:06:30]} Nxd4 {[%emt 0:01:30]} 18. Nxd4 {[%emt 0:00:00]} O-O {[%emt 0:00:30]} 19. Qg3 {[%emt 0:13:00]} f5 {[%emt 0:03:30]} 20. Qf2 {[%emt 0:18:30]} a5 {[%emt 0:05:30] [%clk 0:51]} 21. c3 {[%emt 0:04:30]} a4 {[%emt 0:05:30]} 22. Bxc4 {[%emt 0:05:30]} dxc4 {[%emt 0:00:30]} 23. Rad1 {[%emt 0:00:30]} Rfc8 {[%emt 0:11:30]} 24. Rd2 {[%emt 0:04:30]} Rc7 {[%emt 0:04:30]} 25. Rfd1 {[%emt 0:02:30]} h6 {[%emt 0:01:30]} 26. h3 {[%emt 0:03:30]} Kh7 {[%emt 0:02:30]} 27. Kh2 {[%emt 0:04:30]} Rf8 {[%emt 0:07:30]} 28. Qe3 {[%emt 0:13:17]} Be8 {[%emt 0:10:12]} 29. Kg1 {[%emt 0:02:14]} Kh8 {[%emt 0:01:31]} 30. Qf2 {[%emt 0:01:08]} Kh7 {[%emt 0:00:47]} 31. Kf1 {[%emt 0:02:43]} g5 {[%emt 0:04:15]} 32. Qe3 {[%emt 0:02:43]} g4 {[%emt 0:02:26]} 33. hxg4 {[%emt 0:03:15]} fxg4 {[%emt 0:00:47]} 34. Kg1 {[%emt 0:00:17]} Rd7 {[%emt 0:04:15]} 35. g3 {[%emt 0:00:55]} Qf7 {[%emt 0:00:45]} 36. f5 {[%emt 0:02:45]} exf5 {[%emt 0:00:30]} 37. e6 {[%emt 0:00:17]} Qe7 {[%emt 0:00:17]} 38. Nxf5 {[%emt 0:01:01]} Qf6 {[%emt 0:01:31]} 39. exd7 {[%emt 0:00:42]} 1-0

[Event "Turkey IS Bank Super League 2017"]
[Site "Darica-Kocaeli"]
[Date "2017.08.05"]
[Round "12"]
[White "Ozen, Deniz"]
[Black "Ererdem, Gani Eren"]
[Result "1-0"]
[ECO "B51"]
[WhiteElo "2351"]
[BlackElo "2090"]
[Annotator "ChessBase"]
[PlyCount "115"]
[EventType "team-tourn"]
[EventCountry "TUR"]
[SourceTitle "playchess.com"]
[Source "ChessBase"]
[SourceQuality "1"]
[TimeControl "40/5400+30:1800+30"]

1. e4 {[%emt 0:00:30]} c5 {[%emt 0:01:00]} 2. Nf3 {[%emt 0:00:30]} d6 {[%emt 0:00:30]} 3. Bb5+ {[%emt 0:00:30]} Nd7 {[%emt 0:00:30]} 4. O-O {[%emt 0:00:30]} a6 {[%emt 0:00:00]} 5. Bd3 {[%emt 0:00:00]} Ngf6 {[%emt 0:00:00]} 6. c3 {[%emt 0:00:00]} b5 {[%emt 0:00:30]} 7. Bc2 {[%emt 0:00:30]} Bb7 {[%emt 0:00:30]} 8. Re1 {[%emt 0:00:00]} Rc8 {[%emt 0:00:00]} 9. d3 {[%emt 0:08:00]} e5 {[%emt 0:00:00]} 10. Nbd2 {[%emt 0:00:30]} Be7 {[%emt 0:00:30]} 11. Nf1 {[%emt 0:00:30]} O-O {[%emt 0:00:30]} 12. Ng3 {[%emt 0:00:30]} Re8 {[%emt 0:00:00]} 13. Nf5 {[%emt 0:00:30]} Bf8 {[%emt 0:00:00]} 14. Bg5 {[%emt 0:00:30]} h6 {[%emt 0:09:30]} 15. Bh4 {[%emt 0:08:30]} Qc7 {[%emt 0:09:30]} 16. Rc1 {[%emt 0:05:30]} g6 {[%emt 0:15:30]} 17. Ne3 {[%emt 0:00:30]} Bg7 {[%emt 0:00:30]} 18. Bb3 {[%emt 0:03:30]} Nb6 {[%emt 0:05:30]} 19. a4 {[%emt 0:10:30] [%clk 0:58]} bxa4 {[%emt 0:18:30]} 20. Bxa4 {[%emt 0:02:30]} Nxa4 {[%emt 0:00:30]} 21. Qxa4 {[%emt 0:00:30]} Nd7 {[%emt 0:00:30]} 22. Qc2 {[%emt 0:01:30]} Nb6 {[%emt 0:10:30]} 23. Qd2 {[%emt 0:02:30]} Re6 {[%emt 0:04:30]} 24. c4 {[%emt 0:07:30]} f5 {[%emt 0:11:19]} 25. exf5 {[%emt 0:02:30]} gxf5 {[%emt 0:00:06]} 26. Nxf5 {[%emt 0:00:30]} Rf8 {[%emt 0:00:45]} 27. Nxg7 {[%emt 0:01:30]} Qxg7 {[%emt 0:01:09]} 28. Bg3 {[%emt 0:00:00]} Bxf3 {[%emt 0:07:10]} 29. gxf3 {[%emt 0:00:00]} Nd7 {[%emt 0:02:12]} 30. Ra1 {[%emt 0:07:30]} Nb8 {[%emt 0:02:00]} 31. f4 {[%emt 0:01:30]} Rxf4 {[%emt 0:01:28]} 32. Re4 {[%emt 0:02:30]} Rxe4 {[%emt 0:00:47]} 33. dxe4 {[%emt 0:01:30]} Qf7 {[%emt 0:00:31]} 34. Qd5 {[%emt 0:01:30]} Kh7 {[%emt 0:00:21]} 35. Ra3 {[%emt 0:00:30]} Rf6 {[%emt 0:00:40]} 36. Rb3 {[%emt 0:01:30]} Qxd5 {[%emt 0:00:12]} 37. exd5 {[%emt 0:00:00]} Nd7 {[%emt 0:00:46]} 38. Rb7 {[%emt 0:00:00]} Rf7 {[%emt 0:00:00]} 39. Ra7 {[%emt 0:00:30]} Kg7 {[%emt 0:00:49]} 40. Rxa6 {[%emt 0:00:30]} Rf6 {[%emt 0:00:15]} 41. Bh4 {[%emt 0:00:30]} Rg6+ {[%emt 0:06:30]} 42. Kf1 {[%emt 0:03:30]} Kf7 {[%emt 0:00:00]} 43. Ra7 {[%emt 0:00:00]} Ke8 {[%emt 0:00:00]} 44. Ra8+ {[%emt 0:00:00]} Kf7 {[%emt 0:00:30]} 45. Rd8 {[%emt 0:00:30]} Nf8 {[%emt 0:00:30]} 46. b3 {[%emt 0:01:30]} Rg4 {[%emt 0:00:30]} 47. Bg3 {[%emt 0:00:30]} Ke7 {[%emt 0:00:00]} 48. Rb8 {[%emt 0:00:30]} h5 {[%emt 0:03:00]} 49. f3 {[%emt 0:00:30]} Rd4 {[%emt 0:00:30]} 50. Ke2 {[%emt 0:00:30]} Ng6 {[%emt 0:00:30]} 51. Rb7+ {[%emt 0:00:30]} Kf6 {[%emt 0:05:04]} 52. Rd7 {[%emt 0:02:30]} h4 {[%emt 0:00:30]} 53. Rxd6+ {[%emt 0:00:30]} Kf5 {[%emt 0:05:32]} 54. Rxg6 {[%emt 0:00:30]} hxg3 {[%emt 0:01:17]} 55. Rxg3 {[%emt 0:00:30]} Rh4 {[%emt 0:00:00]} 56. Rg2 {[%emt 0:00:30]} Rh3 {[%emt 0:01:12]} 57. Ke3 {[%emt 0:00:30]} Rh8 {[%emt 0:00:30]} 58. Rd2 {[%emt 0:00:30]} 1-0

[Event "Turkey IS Bank Super League 2017"]
[Site "Darica-Kocaeli"]
[Date "2017.08.05"]
[Round "12"]
[White "Unuk, Laura"]
[Black "Karavade, Eesha"]
[Result "0-1"]
[ECO "D48"]
[WhiteElo "2343"]
[BlackElo "2397"]
[Annotator "NA"]
[PlyCount "66"]
[EventType "team-tourn"]
[EventCountry "TUR"]
[SourceTitle "playchess.com"]
[Source "ChessBase"]
[SourceQuality "1"]
[TimeControl "40/5400+30:1800+30"]

1. d4 {[%emt 0:00:30]} d5 {[%emt 0:02:00]} 2. c4 {[%emt 0:00:30]} c6 {[%emt 0:00:00]} 3. e3 {[%emt 0:00:30]} Nf6 {[%emt 0:00:00]} 4. Nc3 {[%emt 0:00:30]} e6 {[%emt 0:00:30]} 5. Nf3 {[%emt 0:00:30]} Nbd7 {[%emt 0:00:30]} 6. Bd3 {[%emt 0:01:30]} dxc4 {[%emt 0:00:30]} 7. Bxc4 {[%emt 0:00:30]} b5 {[%emt 0:00:30]} 8. Bd3 {[%emt 0:02:30]} Bb7 {[%emt 0:02:30]} 9. O-O {[%emt 0:00:30]} a6 {[%emt 0:00:30]} 10. a4 {[%emt 0:01:30]} b4 {[%emt 0:04:30]} 11. Nb1 {[%emt 0:00:30]} c5 {[%emt 0:01:30]} 12. Nbd2 {[%emt 0:01:30]} Be7 {[%emt 0:02:30]} 13. e4 {[%emt 0:15:30] D48: Semi-Slav: Meran System: 7...b5 8 Bd3 a6} (13. Re1 O-O 14. Qe2 a5 15. e4 cxd4 16. e5 Nd5 17. Nb3 Rc8 18. h4 Re8 19. Qe4 Nf8 20. Nbxd4 Ra8 21. Nb3 Rc8 22. Nbd4 Ba8 23. Qg4 f5 24. exf6 Nxf6 {½-½ (24) Peralta,F (2565)-Korneev,O (2594) La Roda 2017}) 13... cxd4 {[%emt 0:07:30]} 14. e5 $1 {[%emt 0:00:30]} Nd5 {[%emt 0:01:30]} 15. Ne4 $146 {[%emt 0:06:30]} (15. Re1 $11 {keeps the balance.}) ({Predecessor:} 15. Nc4 Nc5 16. Bb1 d3 17. Ne1 Qc7 18. Nxd3 O-O 19. Nxc5 Qxc5 20. Qg4 Rfc8 {½-½ (41) Deak,F (2210)-Forgo,E (2295) Hungary 1998}) 15... Qb8 {[%emt 0:05:30]} 16. Bg5 {[%emt 0:16:30]} Nxe5 {[%emt 0:19:30] [%clk 0:49]} 17. Nxe5 {[%emt 0:04:30]} Qxe5 {[%emt 0:00:30]} 18. f4 {[%emt 0:00:30]} Qb8 {[%emt 0:00:30]} 19. f5 {[%emt 0:02:30]} exf5 {[%emt 0:07:30]} 20. Rxf5 {[%emt 0:03:30] [#]} Ne3 {[%emt 0:06:30]} ({Better is} 20... g6 $1 $17 {[%cal Rg6f5]} 21. Rf2 Bxg5 22. Nxg5 Ne3 23. Bb5+ axb5 24. Qxd4 O-O 25. Qxe3 bxa4 26. Nxf7 Qe8 27. Qxe8 Rfxe8) 21. Bxe3 {[%emt 0:10:30]} dxe3 {[%emt 0:00:00]} 22. Qb3 {[%emt 0:02:30]} O-O {[%emt 0:03:00]} 23. Rxf7 {[%emt 0:02:30]} Rxf7 {[%emt 0:01:30]} 24. Rf1 {[%emt 0:01:30]} Kh8 {[%emt 0:03:30]} 25. Rxf7 $19 {[%emt 0:07:33]} Qe5 {[%emt 0:02:30]} 26. Ng3 {[%emt 0:12:14]} Bc5 {[%emt 0:05:30]} 27. Kf1 {[%emt 0:03:57]} Bd5 {[%emt 0:00:30]} 28. Bc4 {[%emt 0:00:03]} Bxf7 {[%emt 0:00:30]} 29. Bxf7 {[%emt 0:00:04]} Qf4+ {[%emt 0:00:30]} 30. Ke2 {[%emt 0:00:10]} Qf2+ {[%emt 0:01:30]} 31. Kd3 {[%emt 0:00:30]} Rd8+ {[%emt 0:00:00]} 32. Bd5 {[%emt 0:00:11]} Qd2+ {[%emt 0:00:00]} 33. Ke4 {[%emt 0:00:52]} Qd4+ {[%emt 0:00:30]} 0-1

[Event "Turkey IS Bank Super League 2017"]
[Site "Darica-Kocaeli"]
[Date "2017.08.05"]
[Round "12"]
[White "Secer, Ata"]
[Black "Apaydin, Fethi"]
[Result "1/2-1/2"]
[ECO "B30"]
[WhiteElo "2301"]
[BlackElo "2277"]
[Annotator "ChessBase"]
[PlyCount "167"]
[EventType "team-tourn"]
[EventCountry "TUR"]
[SourceTitle "playchess.com"]
[Source "ChessBase"]
[SourceQuality "1"]
[TimeControl "40/5400+30:1800+30"]

1. e4 {[%emt 0:00:30]} c5 {[%emt 0:01:00]} 2. Nf3 {[%emt 0:00:30]} Nc6 {[%emt 0:00:30]} 3. Bb5 {[%emt 0:00:30]} e6 {[%emt 0:00:00]} 4. O-O {[%emt 0:00:30]} Nge7 {[%emt 0:00:00]} 5. Re1 {[%emt 0:02:30]} Nd4 {[%emt 0:01:30]} 6. Nxd4 {[%emt 0:03:30]} cxd4 {[%emt 0:00:00]} 7. c3 {[%emt 0:00:30]} a6 {[%emt 0:05:00]} 8. Bf1 {[%emt 0:00:30]} Nc6 {[%emt 0:00:00]} 9. d3 {[%emt 0:05:30]} Bc5 {[%emt 0:07:00]} 10. cxd4 {[%emt 0:06:30]} Nxd4 {[%emt 0:01:30]} 11. Nc3 {[%emt 0:00:30]} O-O {[%emt 0:03:30]} 12. Be3 {[%emt 0:04:30]} e5 {[%emt 0:04:30]} 13. Rc1 {[%emt 0:01:30]} d6 {[%emt 0:01:30]} 14. Kh1 {[%emt 0:15:30]} Be6 {[%emt 0:15:30]} 15. g3 {[%emt 0:08:30]} b5 {[%emt 0:04:30]} 16. Bg2 {[%emt 0:01:30] [%clk 0:45]} b4 {[%emt 0:22:30]} 17. Ne2 {[%emt 0:04:30]} Nxe2 {[%emt 0:04:30]} 18. Qxe2 {[%emt 0:13:30]} Bxe3 {[%emt 0:02:30]} 19. Qxe3 {[%emt 0:00:30]} Bxa2 {[%emt 0:00:30]} 20. Rc6 {[%emt 0:01:30]} a5 {[%emt 0:03:30]} 21. Ra1 {[%emt 0:03:30]} b3 {[%emt 0:00:30]} 22. Qd2 {[%emt 0:01:30]} Qb8 {[%emt 0:01:30]} 23. Rac1 {[%emt 0:05:11]} a4 {[%emt 0:01:00]} 24. Bh3 {[%emt 0:00:34]} a3 {[%emt 0:06:29]} 25. Kg2 {[%emt 0:00:27]} axb2 {[%emt 0:01:22]} 26. Qxb2 {[%emt 0:00:30]} Qb4 {[%emt 0:00:00]} 27. R1c4 {[%emt 0:02:50]} Qa3 {[%emt 0:07:12]} 28. Qxa3 {[%emt 0:00:44]} Rxa3 {[%emt 0:00:30]} 29. Rb4 {[%emt 0:00:00]} Rd8 {[%emt 0:04:53]} 30. Rxd6 {[%emt 0:03:44]} Raa8 {[%emt 0:00:52]} 31. Rxd8+ {[%emt 0:00:30]} Rxd8 {[%emt 0:00:00]} 32. Bd7 {[%emt 0:00:00]} Kf8 {[%emt 0:01:56]} 33. Bc6 {[%emt 0:00:09]} Rxd3 {[%emt 0:00:23]} 34. Bd5 {[%emt 0:04:38]} f6 {[%emt 0:00:00]} 35. Rb7 {[%emt 0:09:24]} Rd4 {[%emt 0:00:00]} 36. Rb8+ {[%emt 0:00:11]} Ke7 {[%emt 0:00:00]} 37. Rb7+ {[%emt 0:00:30]} Kd6 {[%emt 0:00:01]} 38. Bxb3 {[%emt 0:00:52]} Kc6 {[%emt 0:00:00]} 39. Rb8 {[%emt 0:00:00]} Kc7 {[%emt 0:00:00]} 40. Rb5 {[%emt 0:00:00]} Bxb3 {[%emt 0:00:22]} 41. Rxb3 {[%emt 0:02:16]} Rxe4 {[%emt 0:00:30]} 42. h4 {[%emt 0:01:30]} Rd4 {[%emt 0:04:30]} 43. Ra3 {[%emt 0:00:30]} Rd7 {[%emt 0:00:30]} 44. Ra6 {[%emt 0:00:30]} Kd8 {[%emt 0:00:30]} 45. Kf3 {[%emt 0:00:00]} Ke7 {[%emt 0:00:30]} 46. Ke3 {[%emt 0:00:00]} Kf7 {[%emt 0:00:30]} 47. Rb6 {[%emt 0:00:30]} Kg6 {[%emt 0:00:30]} 48. Kf3 {[%emt 0:00:30]} Kf5 {[%emt 0:00:00]} 49. Rb5 {[%emt 0:00:30]} Rd3+ {[%emt 0:00:00]} 50. Kg2 {[%emt 0:00:30]} h6 {[%emt 0:00:30]} 51. Rb7 {[%emt 0:01:30]} g6 {[%emt 0:00:30]} 52. Rb6 {[%emt 0:03:30]} Rd2 {[%emt 0:00:30]} 53. Ra6 {[%emt 0:01:30]} e4 {[%emt 0:00:30]} 54. Kf1 {[%emt 0:00:30]} g5 {[%emt 0:04:30]} 55. hxg5 {[%emt 0:00:30]} hxg5 {[%emt 0:00:30]} 56. Kg1 {[%emt 0:03:30]} Ke5 {[%emt 0:00:30]} 57. Rb6 {[%emt 0:00:30]} Rd6 {[%emt 0:00:30]} 58. Rb8 {[%emt 0:00:00]} Kf5 {[%emt 0:00:00]} 59. Rb4 {[%emt 0:00:00]} Re6 {[%emt 0:00:00]} 60. Kg2 {[%emt 0:00:30]} Re5 {[%emt 0:00:30]} 61. Rb6 {[%emt 0:01:30]} Re6 {[%emt 0:01:30]} 62. Rb5+ {[%emt 0:00:30]} Re5 {[%emt 0:00:30]} 63. Rb6 {[%emt 0:00:30]} Ra5 {[%emt 0:00:30]} 64. Rc6 {[%emt 0:00:30]} Ke5 {[%emt 0:00:00]} 65. Rb6 {[%emt 0:01:30]} Rd5 {[%emt 0:00:00]} 66. Ra6 {[%emt 0:00:30]} Rd6 {[%emt 0:01:30]} 67. Ra5+ {[%emt 0:01:30]} Ke6 {[%emt 0:00:30]} 68. Ra8 {[%emt 0:00:30]} Kf7 {[%emt 0:03:30]} 69. Kf1 {[%emt 0:00:52]} Rb6 {[%emt 0:01:30]} 70. Ra4 {[%emt 0:00:09]} Re6 {[%emt 0:00:30]} 71. Ke2 {[%emt 0:00:30]} f5 {[%emt 0:04:39]} 72. Ke3 {[%emt 0:02:06]} Kf6 {[%emt 0:00:57]} 73. f3 {[%emt 0:00:12]} exf3+ {[%emt 0:00:30]} 74. Kxf3 {[%emt 0:00:02]} Rb6 {[%emt 0:02:13]} 75. Ra5 {[%emt 0:01:49]} Rb3+ {[%emt 0:00:05]} 76. Kf2 {[%emt 0:00:03]} Rb2+ {[%emt 0:01:33]} 77. Kg1 {[%emt 0:00:30]} Rd2 {[%emt 0:00:30]} 78. Ra8 {[%emt 0:00:30]} Ke5 {[%emt 0:00:55]} 79. Rg8 {[%emt 0:00:16]} g4 {[%emt 0:00:30]} 80. Rf8 {[%emt 0:00:55]} Ke4 {[%emt 0:00:30]} 81. Rf7 {[%emt 0:08:46]} Kf3 {[%emt 0:00:00]} 82. Rxf5+ {[%emt 0:00:30]} Kxg3 {[%emt 0:00:13]} 83. Rf1 {[%emt 0:02:44]} Kh3 {[%emt 0:00:15]} 84. Ra1 {[%emt 0:01:21]} 1/2-1/2

[Event "Turkey IS Bank Super League 2017"]
[Site "Darica-Kocaeli"]
[Date "2017.08.05"]
[Round "12"]
[White "Agdelen, Huseyin Can"]
[Black "Kerigan, Demre"]
[Result "1-0"]
[ECO "B48"]
[WhiteElo "2277"]
[BlackElo "2354"]
[Annotator "NA"]
[PlyCount "95"]
[EventType "team-tourn"]
[EventCountry "TUR"]
[SourceTitle "playchess.com"]
[Source "ChessBase"]
[SourceQuality "1"]
[TimeControl "40/5400+30:1800+30"]

1. e4 {[%emt 0:00:30]} c5 {[%emt 0:01:00]} 2. Nf3 {[%emt 0:00:30]} e6 {[%emt 0:00:30]} 3. d4 {[%emt 0:00:30]} cxd4 {[%emt 0:00:30]} 4. Nxd4 {[%emt 0:00:30]} Nc6 {[%emt 0:00:30]} 5. Nc3 {[%emt 0:00:30]} Qc7 {[%emt 0:00:00]} 6. Be3 {[%emt 0:00:30]} a6 {[%emt 0:00:00]} 7. Qf3 {[%emt 0:02:30] B48: Sicilian: Taimanov: 5 Nc3 Qc7 6 Be3 a6 without Be2} Bd6 {[%emt 0:00:30]} 8. O-O-O {[%emt 0:01:30]} Be5 {[%emt 0:00:30]} 9. g3 {[%emt 0:02:30]} b5 {[%emt 0:07:30]} 10. Qe2 {[%emt 0:07:30]} Bb7 {[%emt 0:07:30] LiveBook: 5 Games} 11. f4 {[%emt 0:24:30]} Bxd4 {[%emt 0:00:30]} 12. Bxd4 {[%emt 0:00:30]} Nxd4 {[%emt 0:00:30]} 13. Rxd4 {[%emt 0:00:30]} Ne7 {[%emt 0:06:30] [#]} 14. Bh3 $146 {[%emt 0:10:30]} ({Predecessor:} 14. Bg2 O-O {1-0 (33) Najer,E (2683)-Goormachtigh,J (2184) Novi Sad 2016}) 14... O-O {[%emt 0:13:30] [%clk 0:58]} 15. Rhd1 {[%emt 0:14:30]} Bc6 {[%emt 0:02:30]} 16. e5 {[%emt 0:06:30]} Qa5 {[%emt 0:01:30]} 17. Kb1 {[%emt 0:06:51]} b4 {[%emt 0:11:30]} 18. Ne4 {[%emt 0:00:05]} Bd5 {[%emt 0:03:30]} 19. b3 {[%emt 0:01:30]} (19. c4 $5 {[%cal Rc4d5]} bxc3 20. Nxc3 $11) 19... Bxe4 {[%emt 0:11:30]} 20. Qxe4 {[%emt 0:00:04]} Nd5 {[%emt 0:00:30]} 21. Rxd5 {[%emt 0:00:30]} exd5 {[%emt 0:00:30]} 22. Rxd5 {[%emt 0:00:00]} Qb6 {[%emt 0:00:00]} 23. Qd4 {[%emt 0:01:59]} (23. Bxd7 $16 Qg1+ 24. Kb2) 23... Qxd4 {[%emt 0:03:00]} 24. Rxd4 {[%emt 0:00:09]} a5 {[%emt 0:00:00]} 25. Bxd7 {[%emt 0:00:18]} Rfd8 {[%emt 0:02:00]} 26. f5 {[%emt 0:01:32]} Kf8 {[%emt 0:02:30]} 27. e6 {[%emt 0:00:19]} Ke7 {[%emt 0:01:30]} 28. Kb2 {[%emt 0:06:38]} fxe6 {[%emt 0:09:06]} 29. fxe6 {[%emt 0:00:13]} Rf8 {[%emt 0:01:19]} 30. a3 {[%emt 0:03:28]} bxa3+ {[%emt 0:09:45]} 31. Kxa3 {[%emt 0:00:30]} Rf5 {[%emt 0:00:25]} 32. c4 {[%emt 0:01:33]} Ra7 {[%emt 0:03:02]} 33. g4 {[%emt 0:00:24]} Rf1 {[%emt 0:01:07]} 34. c5 {[%emt 0:00:43]} a4 {[%emt 0:01:23]} 35. Rxa4 {[%emt 0:00:35]} Ra1+ {[%emt 0:00:30]} 36. Kb4 {[%emt 0:00:30]} R7xa4+ {[%emt 0:00:30]} 37. bxa4 {[%emt 0:00:30]} Ra2 {[%emt 0:00:10]} 38. a5 {[%emt 0:02:51]} Rb2+ {[%emt 0:00:46]} 39. Ka3 {[%emt 0:01:39]} Rc2 {[%emt 0:00:55]} 40. a6 {[%emt 0:02:09]} Rxc5 {[%emt 0:30:30]} 41. Kb4 {[%emt 0:00:30]} Rc7 {[%emt 0:00:00]} 42. Ka5 {[%emt 0:01:30]} Kd6 {[%emt 0:00:00]} 43. Kb6 {[%emt 0:00:30]} Rc2 {[%emt 0:00:00]} 44. a7 {[%emt 0:01:30]} Ra2 {[%emt 0:00:00]} 45. Bb5 $18 {[%emt 0:02:30]} g5 {[%emt 0:00:00]} 46. e7 {[%emt 0:00:30]} Kxe7 {[%emt 0:00:00]} 47. Ba6 {[%emt 0:00:00]} Rb2+ {[%emt 0:00:00]} 48. Kc5 {[%emt 0:00:00]} 1-0

[Event "Turkey IS Bank Super League 2017"]
[Site "Darica-Kocaeli"]
[Date "2017.08.05"]
[Round "12"]
[White "Tuncer, Tuna"]
[Black "Unat, Can Haktan"]
[Result "1-0"]
[ECO "B46"]
[WhiteElo "2274"]
[BlackElo "2006"]
[Annotator "NA"]
[PlyCount "107"]
[EventType "team-tourn"]
[EventCountry "TUR"]
[SourceTitle "playchess.com"]
[Source "ChessBase"]
[SourceQuality "1"]
[TimeControl "40/5400+30:1800+30"]

1. e4 {[%emt 0:00:30]} c5 {[%emt 0:02:00]} 2. Nf3 {[%emt 0:00:30]} e6 {[%emt 0:00:30]} 3. d4 {[%emt 0:00:30]} cxd4 {[%emt 0:00:30]} 4. Nxd4 {[%emt 0:00:00]} Nc6 {[%emt 0:00:00]} 5. Nc3 {[%emt 0:00:00]} Qc7 {[%emt 0:00:00]} 6. f4 {[%emt 0:00:30]} a6 {[%emt 0:00:00]} 7. Nxc6 {[%emt 0:00:30]} bxc6 {[%emt 0:00:00]} 8. Bd3 {[%emt 0:00:00]} d5 {[%emt 0:04:30]} 9. O-O {[%emt 0:00:00]} Nf6 {[%emt 0:01:30]} 10. Qe2 {[%emt 0:01:30]} Be7 {[%emt 0:03:30]} 11. b3 {[%emt 0:00:30]} Bb7 {[%emt 0:00:30]} 12. Bb2 {[%emt 0:00:30]} O-O {[%emt 0:02:30]} 13. Rae1 {[%emt 0:01:30] [#] B46: Sicilian: Taimanov: 5 Nc3 a6} Rad8 $146 {[%emt 0:03:30]} ({Find the theoretical novelty and annotate with similar games:} 13... Rfe8 14. Rf3 c5 15. Kh1 g6 16. e5 Nd7 17. Rh3 Bf8 18. Nd1 c4 19. bxc4 dxc4 20. Bxc4 Nc5 21. Ne3 h5 {½-½ (29) Pichot,A (2544)-Bosiocic,M (2591) Doha 2016}) 14. Kh1 {[%emt 0:06:30]} a5 {[%emt 0:11:30] [#]} (14... d4 $11 {remains equal.} 15. Na4 Bb4) 15. Qf3 {[%emt 0:25:30]} ({White should play} 15. exd5 $1 $16 cxd5 16. f5) 15... d4 {[%emt 0:12:30]} 16. Nb1 {[%emt 0:02:30]} c5 {[%emt 0:02:30]} (16... a4 $5) 17. a4 {[%emt 0:02:30]} Ne8 {[%emt 0:03:30]} 18. Qh3 {[%emt 0:06:30]} f6 {[%emt 0:00:30] [%clk 0:50]} 19. Bc4 {[%emt 0:03:30]} Nd6 {[%emt 0:16:30]} 20. Bxe6+ {[%emt 0:01:30]} Kh8 {[%emt 0:00:00]} 21. Nd2 {[%emt 0:02:30]} Rde8 {[%emt 0:06:00]} 22. Bc1 {[%emt 0:05:30]} Bc8 {[%emt 0:09:30]} 23. Bxc8 {[%emt 0:05:30]} Nxc8 {[%emt 0:00:59]} 24. Qd3 {[%emt 0:03:30]} Na7 {[%emt 0:01:12]} 25. Nc4 {[%emt 0:03:30]} Nc6 {[%emt 0:00:35]} 26. Bd2 {[%emt 0:00:30]} Bd6 {[%emt 0:01:57]} 27. Re2 {[%emt 0:06:30]} Qd8 {[%emt 0:00:58]} 28. Rfe1 {[%emt 0:01:30]} Bc7 {[%emt 0:00:18]} 29. Qf3 {[%emt 0:02:01]} d3 {[%emt 0:00:46]} 30. Qxd3 {[%emt 0:00:10]} Qxd3 {[%emt 0:00:12]} 31. cxd3 {[%emt 0:00:05]} Nd4 {[%emt 0:01:53]} 32. Rf2 {[%emt 0:03:08]} Nxb3 {[%emt 0:00:17]} 33. Bc3 {[%emt 0:02:43]} Rb8 {[%emt 0:03:45]} 34. g3 {[%emt 0:04:38]} Rfd8 {[%emt 0:00:44]} 35. Rd1 {[%emt 0:01:18]} Kg8 {[%emt 0:00:42]} 36. Rb2 {[%emt 0:00:33]} Rb7 {[%emt 0:08:24]} 37. Kg2 {[%emt 0:01:29]} Rdb8 {[%emt 0:00:33]} 38. Rdb1 {[%emt 0:00:27]} Kf8 {[%emt 0:00:13]} 39. Kf2 {[%emt 0:01:26]} Ke8 {[%emt 0:00:15]} 40. Ke3 {[%emt 0:00:00]} Kd7 {[%emt 0:05:17]} 41. Nd2 {[%emt 0:08:32]} Nxd2 {[%emt 0:00:30]} 42. Kxd2 {[%emt 0:00:30]} Rxb2+ {[%emt 0:00:30]} 43. Rxb2 {[%emt 0:00:00]} Rxb2+ {[%emt 0:01:30]} 44. Bxb2 {[%emt 0:00:00]} Bd8 {[%emt 0:00:30]} 45. Kc3 {[%emt 0:00:30]} Kc6 {[%emt 0:00:30]} 46. Kc4 {[%emt 0:00:30]} Bc7 {[%emt 0:09:30]} 47. Bc1 {[%emt 0:03:30]} h6 {[%emt 0:01:14]} 48. Bd2 {[%emt 0:06:30]} Bd8 {[%emt 0:00:49]} 49. g4 {[%emt 0:02:43]} Bb6 {[%emt 0:04:17]} 50. h4 {[%emt 0:00:35]} Bd8 {[%emt 0:01:30]} 51. h5 {[%emt 0:00:21]} Bc7 {[%emt 0:05:28]} 52. g5 {[%emt 0:00:49]} hxg5 {[%emt 0:00:43]} 53. fxg5 $18 {[%emt 0:00:06]} Be5 {[%emt 0:00:35]} 54. g6 {[%emt 0:00:39]} 1-0